bitfinex/quotes_BTCUSD_20250110
["timestamp","ask_amount","ask_price","bid_price","bid_amount"]
[1736506345422,4.866e-05,95128.0,95122.0,0.210256]
[1736506345601,4.866e-05,95128.0,95121.0,0.023]
[1736506346013,4.866e-05,95128.0,95123.0,0.00944892]
[1736506346183,4.866e-05,95128.0,95122.0,0.00944971]
[1736506346840,0.00104866,95128.0,95124.0,0.023]
[1736506347058,0.00104866,95128.0,95127.0,0.023]
[1736506347491,4.866e-05,95128.0,95127.0,0.03244244]
[1736506349388,0.00104866,95128.0,95127.0,0.03244244]
[1736506349628,0.00104866,95128.0,95127.0,0.03344244]
[1736506349887,4.866e-05,95128.0,95127.0,0.03344244]
[1736506350149,0.00104866,95128.0,95127.0,0.03844244]
[1736506350389,4.866e-05,95128.0,95127.0,0.03344244]
[1736506350636,0.00104866,95128.0,95127.0,0.03844244]
[1736506351102,4.866e-05,95128.0,95127.0,0.03344244]
[1736506351356,0.00104866,95128.0,95127.0,0.03844244]
[1736506351557,0.00104866,95128.0,95127.0,0.04044244]
[1736506351972,0.00104866,95128.0,95127.0,0.04149358]
[1736506352114,0.00104866,95128.0,95127.0,0.14379332]
[1736506352319,0.00104866,95128.0,95127.0,0.14579332]
[1736506353335,0.00104866,95128.0,95127.0,0.1447422]
[1736506353546,0.00104866,95128.0,95127.0,0.1457933]
[1736506354194,0.00104866,95128.0,95127.0,0.1447422]
[1736506357326,0.00104866,95128.0,95127.0,0.1427422]
[1736506357552,4.866e-05,95128.0,95127.0,0.1367422]
[1736506357743,0.00104866,95128.0,95127.0,0.1427422]
[1736506358792,0.00104866,95128.0,95127.0,0.1447422]
[1736506359129,0.00104866,95128.0,95127.0,0.36358441]
[1736506359342,0.00104866,95128.0,95127.0,0.3625333]
[1736506359590,0.00104866,95128.0,95127.0,0.2678422]
[1736506359829,0.00104866,95128.0,95127.0,0.2658422]
[1736506360019,0.00104866,95128.0,95127.0,0.2598422]
[1736506360261,4.866e-05,95128.0,95127.0,0.49764294]
[1736506360504,0.00104866,95128.0,95127.0,0.50364294]
[1736506360702,0.00104866,95128.0,95127.0,0.50164294]
[1736506361178,4.866e-05,95128.0,95127.0,0.49564294]
[1736506361641,0.00104866,95128.0,95127.0,0.50164294]
[1736506362098,0.0007701,95128.0,95127.0,0.50464294]
[1736506362551,0.0007701,95128.0,95127.0,0.50164294]
[1736506362708,0.0007701,95128.0,95127.0,0.50564294]
[1736506362914,0.0007701,95128.0,95127.0,2.00564294]
[1736506363321,0.05,95131.0,95127.0,2.00314294]
[1736506363589,0.05,95131.0,95130.0,0.0808]
[1736506363792,0.05,95131.0,95130.0,0.2091508]
[1736506363960,0.05,95131.0,95130.0,0.21753474]
[1736506364881,0.051,95131.0,95130.0,0.67272692]
[1736506365495,0.051,95131.0,95130.0,0.43677274]
[1736506366136,0.051,95131.0,95130.0,0.44277274]
[1736506367911,0.051,95131.0,95130.0,0.45317502]
[1736506368879,0.051,95131.0,95130.0,0.64186379]
[1736506371042,0.051,95131.0,95130.0,0.66329117]
[1736506371241,0.051,95131.0,95130.0,0.4746024]
[1736506371558,0.048,95131.0,95130.0,0.4746024]
[1736506372779,0.048,95131.0,95130.0,1.9746024]
[1736506373353,0.048,95131.0,95130.0,2.16326151]
[1736506374166,0.048,95131.0,95130.0,1.9746024]
[1736506374365,0.048,95131.0,95130.0,0.4746024]
[1736506375395,0.048,95131.0,95130.0,0.66326151]
[1736506379104,0.048,95131.0,95130.0,2.16326151]
[1736506382094,0.048,95131.0,95130.0,1.9746024]
[1736506383928,0.048,95131.0,95130.0,0.4746024]
[1736506384187,0.048,95131.0,95130.0,0.4818424]
[1736506385358,0.048,95131.0,95130.0,0.62333827]
[1736506385915,0.048,95131.0,95130.0,0.4818424]
[1736506386319,0.048,95131.0,95130.0,0.4010424]
[1736506387593,0.048,95131.0,95130.0,0.3950424]
[1736506387803,0.047,95131.0,95130.0,0.3860424]
[1736506387980,0.048,95131.0,95130.0,0.3908024]
[1736506388234,0.048,95131.0,95130.0,0.3980424]
[1736506388757,0.048,95131.0,95130.0,0.49240287]
[1736506389728,0.048,95131.0,95130.0,0.53958548]
[1736506389932,0.048,95131.0,95130.0,0.51962148]
[1736506390157,0.048,95131.0,95130.0,0.3780784]
[1736506390370,0.048,95131.0,95130.0,0.3750424]
[1736506392046,0.048,95131.0,95130.0,0.3980424]
[1736506392253,0.048,95131.0,95130.0,0.5233424]
[1736506392397,0.048,95131.0,95130.0,2.0233424]
[1736506392802,0.048,95131.0,95130.0,0.5233424]
[1736506393756,0.047,95131.0,95130.0,0.5113424]
[1736506394107,0.048,95131.0,95130.0,0.5233424]
[1736506394535,0.047,95131.0,95130.0,0.5113424]
[1736506394735,0.048,95131.0,95130.0,0.5203424]
[1736506394936,0.048,95131.0,95130.0,0.5233424]
[1736506396365,0.03860864,95131.0,95130.0,0.5233424]
[1736506399109,0.03860864,95131.0,95130.0,0.80630329]
[1736506400333,0.03860864,95131.0,95130.0,0.5233424]
[1736506401538,0.03860864,95131.0,95130.0,0.4473424]
[1736506402137,0.03860864,95131.0,95130.0,0.3980424]
[1736506406643,0.03860864,95131.0,95130.0,0.4786424]
[1736506407059,0.03860864,95131.0,95130.0,1.9786424]
[1736506407267,0.03860864,95131.0,95130.0,0.4786424]
[1736506407469,0.03860864,95131.0,95130.0,0.4756424]
[1736506407679,0.03760864,95131.0,95130.0,0.4696424]
[1736506407881,0.03760864,95131.0,95130.0,0.4786424]
[1736506408293,0.03760864,95131.0,95130.0,0.4756424]
[1736506408524,0.03760864,95131.0,95130.0,0.5285424]
[1736506410199,0.03760864,95131.0,95130.0,0.7785424]
[1736506410404,0.03760864,95131.0,95130.0,0.81138335]
[1736506411102,0.03760864,95131.0,95130.0,1.22919279]
[1736506411255,0.03760864,95131.0,95130.0,1.19635184]
[1736506416072,2.4e-07,95135.0,95134.0,0.82362842]
[1736506416286,0.00067975,95140.0,95139.0,0.67692842]
[1736506416488,0.0003,95148.0,95145.0,0.47362842]
[1736506416702,0.0003,95148.0,95145.0,0.61075626]
[1736506416906,0.0003,95148.0,95145.0,0.61799626]
[1736506416907,3e-07,95146.0,95145.0,0.61799626]
[1736506417141,3e-07,95146.0,95145.0,0.62011881]
[1736506417344,3e-07,95146.0,95145.0,0.52743039]
[1736506417543,3e-07,95146.0,95145.0,0.51760231]
[1736506417954,3e-07,95146.0,95145.0,0.62353073]
[1736506418159,3e-07,95146.0,95145.0,0.66696619]
[1736506418395,3e-07,95146.0,95145.0,0.95260273]
[1736506418505,0.00048687,95146.0,95145.0,1.05253115]
[1736506419229,0.00048687,95146.0,95145.0,1.06153115]
[1736506420058,0.00048687,95146.0,95145.0,0.64318621]
[1736506421727,8.7e-07,95146.0,95145.0,0.97018621]
[1736506424263,8.7e-07,95146.0,95145.0,0.97014621]
[1736506424467,8.7e-07,95146.0,95145.0,0.87021779]
[1736506424757,8.7e-07,95146.0,95145.0,0.97014621]
[1736506425472,8.7e-07,95146.0,95145.0,0.99156869]
[1736506426369,8.7e-07,95146.0,95145.0,1.29156869]
[1736506426821,8.7e-07,95146.0,95145.0,1.28556869]
[1736506427041,8.7e-07,95146.0,95145.0,1.28256869]
[1736506427425,8.7e-07,95146.0,95145.0,1.29156869]
[1736506427621,8.7e-07,95146.0,95145.0,1.28556869]
[1736506427828,8.7e-07,95146.0,95145.0,1.70286564]
[1736506428998,8.7e-07,95146.0,95145.0,1.29256869]
[1736506431133,8.7e-07,95146.0,95145.0,1.50277369]
[1736506432393,8.7e-07,95146.0,95145.0,1.91988529]
[1736506433003,8.7e-07,95146.0,95145.0,1.50277369]
[1736506434873,8.7e-07,95146.0,95145.0,1.49557369]
[1736506435050,8.7e-07,95146.0,95145.0,1.50277369]
[1736506439563,8.7e-07,95146.0,95145.0,1.50698469]
[1736506440183,0.00112873,95154.0,95153.0,0.1]
[1736506440443,0.00122073,95154.0,95153.0,0.47168676]
[1736506440641,0.00122073,95154.0,95153.0,0.48102973]
[1736506440845,0.07722073,95154.0,95153.0,0.32382973]
[1736506441047,0.07722073,95154.0,95153.0,0.00934297]
[1736506441499,0.07722073,95154.0,95153.0,0.009]
[1736506441654,0.07722073,95154.0,95153.0,0.00934285]
[1736506441833,0.07722073,95154.0,95153.0,0.01534285]
[1736506442034,0.07722073,95154.0,95153.0,0.015]
[1736506442344,0.07722073,95154.0,95153.0,0.00934285]
[1736506442582,0.07722073,95154.0,95153.0,0.01834285]
[1736506442779,0.07722073,95154.0,95153.0,0.11329976]
[1736506442980,0.07722073,95154.0,95153.0,0.12264261]
[1736506443185,0.07722073,95154.0,95153.0,0.12464261]
[1736506443578,0.07722073,95154.0,95153.0,0.02754285]
[1736506444558,0.07722073,95154.0,95153.0,0.23772985]
[1736506445757,0.07722073,95154.0,95153.0,0.02754285]
[1736506447524,0.07722073,95154.0,95153.0,0.02034285]
[1736506449797,0.07722073,95154.0,95153.0,0.14764261]
[1736506450624,0.07722073,95154.0,95153.0,0.24184593]
[1736506451005,0.07722073,95154.0,95153.0,0.14764261]
[1736506451612,0.00122073,95154.0,95153.0,0.14764261]
[1736506451816,0.00122073,95154.0,95153.0,0.14869348]
[1736506452399,0.00122073,95154.0,95153.0,0.28999846]
[1736506452602,0.00122073,95154.0,95153.0,0.28894759]
[1736506453801,0.00122073,95154.0,95153.0,0.14764261]
[1736506454009,0.00122073,95154.0,95153.0,0.1486934]
[1736506455058,0.00122073,95154.0,95153.0,0.33710005]
[1736506455236,0.00122073,95154.0,95153.0,0.33604926]
[1736506455440,0.00122073,95154.0,95153.0,0.13864261]
[1736506455644,0.00122073,95154.0,95153.0,0.13769341]
[1736506455941,0.00122073,95154.0,95153.0,0.13969341]
[1736506456375,0.00122073,95154.0,95153.0,0.13769341]
[1736506456769,0.00122073,95154.0,95153.0,0.14169341]
[1736506457002,0.00122073,95154.0,95153.0,0.15069341]
[1736506457208,0.00122073,95154.0,95153.0,0.37720172]
[1736506457413,0.00122073,95154.0,95153.0,0.38515092]
[1736506458468,0.00122073,95154.0,95153.0,0.14964261]
[1736506458685,0.00122073,95154.0,95153.0,0.15069339]
[1736506462600,0.15,95179.0,95155.0,0.210183]
[1736506462806,0.210132,95178.0,95158.0,0.210176]
[1736506463095,0.210132,95178.0,95159.0,0.11149976]
[1736506463475,0.210132,95178.0,95160.0,0.00934008]
[1736506463678,0.210132,95178.0,95161.0,0.10429976]
[1736506463911,0.210132,95178.0,95163.0,0.09440662]
[1736506464293,0.210132,95178.0,95164.0,0.10374372]
[1736506464958,0.210132,95178.0,95164.0,0.0093371]
[1736506465558,0.1261,95177.0,95164.0,0.0093371]
[1736506466812,0.1261,95177.0,95164.0,0.0113371]
[1736506467017,0.1261,95177.0,95164.0,0.0093371]
[1736506467539,0.1261,95177.0,95164.0,0.0113371]
[1736506470243,0.00012266,95182.0,95169.0,0.210152]
[1736506470625,0.00012266,95182.0,95170.0,0.00933213]
[1736506472228,0.0791,95180.0,95170.0,0.00933213]
[1736506472424,0.21013,95179.0,95170.0,0.00933213]
[1736506472650,0.0791,95180.0,95168.0,0.09440662]
[1736506472851,0.0791,95180.0,95171.0,0.00932878]
[1736506473052,0.0791,95180.0,95169.0,0.10373728]
[1736506473279,0.0791,95180.0,95169.0,0.09440662]
[1736506473475,0.0791,95180.0,95170.0,0.00932988]
[1736506473794,0.0791,95180.0,95173.0,0.09440662]
[1736506474233,0.0791,95180.0,95174.0,0.00932672]
[1736506475982,0.0791,95180.0,95176.0,0.09440662]
[1736506476355,0.0791,95180.0,95177.0,0.00932436]
[1736506476984,0.0791,95180.0,95171.0,0.18881851]
[1736506476985,0.0791,95180.0,95174.0,0.09440662]
[1736506477197,0.0791,95180.0,95178.0,0.0093229]
[1736506477404,0.0791,95180.0,95176.0,0.001]
[1736506477603,0.0791,95180.0,95179.0,0.00949213]
[1736506477811,0.0791,95180.0,95173.0,0.09440662]
[1736506478151,0.0791,95180.0,95174.0,0.0094967]
[1736506478351,0.0791,95180.0,95177.0,0.001]
[1736506478912,0.0791,95180.0,95178.0,0.00949355]
[1736506479129,0.0791,95180.0,95177.0,0.001]
[1736506479553,0.0791,95180.0,95178.0,0.0094935]
[1736506480103,0.0791,95180.0,95173.0,0.09540662]
[1736506480490,0.0791,95180.0,95177.0,0.001]
[1736506480810,0.0791,95180.0,95178.0,0.0094935]
[1736506481010,0.0791,95180.0,95178.0,0.0104935]
[1736506481329,0.0791,95180.0,95178.0,0.001]
[1736506481949,0.0791,95180.0,95174.0,0.09440662]
[1736506482355,0.0791,95180.0,95175.0,0.0094794]
[1736506483060,0.05,95178.0,95175.0,0.0094794]
[1736506483229,0.05,95178.0,95177.0,0.001]
[1736506483435,0.047,95178.0,95177.0,0.001]
[1736506483642,0.047,95178.0,95177.0,0.00947785]
[1736506483819,0.047,95178.0,95175.0,0.09540662]
[1736506484027,0.047,95178.0,95177.0,0.00947785]
[1736506484246,0.047,95178.0,95176.0,0.00947864]
[1736506484498,0.047,95178.0,95177.0,0.01147785]
[1736506484871,0.047,95178.0,95177.0,0.00947785]
[1736506485171,0.047,95178.0,95175.0,0.10340662]
[1736506485387,0.047,95178.0,95177.0,0.00947775]
[1736506485593,0.047,95178.0,95176.0,0.01147854]
[1736506485767,0.047,95178.0,95177.0,0.00947747]
[1736506486374,0.047,95178.0,95175.0,0.10540662]
[1736506486598,0.047,95178.0,95177.0,0.00947747]
[1736506486810,0.047,95178.0,95176.0,0.00947826]
[1736506486970,0.047,95178.0,95177.0,0.00947747]
[1736506487172,0.047,95178.0,95177.0,0.01747747]
[1736506487414,0.047,95178.0,95177.0,0.008]
[1736506487621,0.047,95178.0,95177.0,0.01747747]
[1736506487791,0.047,95178.0,95177.0,0.008]
[1736506487996,0.047,95178.0,95177.0,0.01947724]
[1736506490285,0.047,95178.0,95177.0,0.01943659]
[1736506492463,0.04672158,95178.0,95177.0,0.01943659]
[1736506499604,0.04672158,95178.0,95177.0,0.11384321]
[1736506501276,0.04672158,95178.0,95177.0,0.24374321]
[1736506501478,0.04672158,95178.0,95177.0,0.11384321]
[1736506502103,0.04672158,95178.0,95177.0,0.16104653]
[1736506502692,0.04672158,95178.0,95177.0,0.01943659]
[1736506504058,0.04672158,95178.0,95177.0,0.40987035]
[1736506505747,0.04672158,95178.0,95177.0,0.42039531]
[1736506506989,0.04672158,95178.0,95177.0,0.40987035]
[1736506507225,0.04672158,95178.0,95177.0,0.41580635]
[1736506507458,0.04672158,95178.0,95177.0,0.02537259]
[1736506508731,0.04672158,95178.0,95177.0,0.16707883]
[1736506511266,0.04672158,95178.0,95177.0,0.02537259]
[1736506513148,0.04672158,95178.0,95177.0,0.16707883]
[1736506516699,0.04672158,95178.0,95177.0,0.16673196]
[1736506519322,0.04672158,95178.0,95177.0,0.24343196]
[1736506520136,0.04672158,95178.0,95177.0,0.10172572]
[1736506520744,0.04672158,95178.0,95177.0,0.25142548]
[1736506521340,0.04672158,95178.0,95177.0,0.26174994]
[1736506529624,0.04672158,95178.0,95177.0,0.15432572]
[1736506530230,0.04672158,95178.0,95177.0,0.39038473]
[1736506531029,0.04672158,95178.0,95177.0,0.15432572]
[1736506532194,0.04672158,95178.0,95177.0,0.14712572]
[1736506532332,0.04672158,95178.0,95177.0,0.15432572]
[1736506532535,0.04672158,95178.0,95177.0,0.29598237]
[1736506533691,0.04672158,95178.0,95177.0,0.39038473]
[1736506534283,0.04672158,95178.0,95177.0,0.34319096]
[1736506535075,0.04672158,95178.0,95177.0,0.39038473]
[1736506536187,0.04672158,95178.0,95177.0,0.49468449]
[1736506536557,0.04672158,95178.0,95177.0,0.51768449]
[1736506536721,0.04672158,95178.0,95177.0,0.28162548]
[1736506541292,0.04672158,95178.0,95177.0,0.56410228]
[1736506542045,0.04672158,95178.0,95177.0,0.28162548]
[1736506544035,0.00012266,95182.0,95178.0,0.443264]
[1736506544348,0.00012266,95182.0,95180.0,0.233128]
[1736506544542,0.00012266,95182.0,95181.0,0.12729976]
[1736506544748,0.00012266,95182.0,95181.0,0.21547963]
[1736506545884,0.00012266,95182.0,95181.0,0.19247963]
[1736506546085,0.00012266,95182.0,95181.0,0.19347963]
[1736506546286,0.00012266,95182.0,95181.0,0.20047963]
[1736506549955,0.00012266,95182.0,95181.0,0.22453012]
[1736506550159,0.00012266,95182.0,95181.0,0.22347963]
[1736506552059,0.00012266,95182.0,95181.0,0.20047963]
[1736506552716,0.00012266,95182.0,95181.0,0.20767963]
[1736506560824,0.00012266,95182.0,95181.0,0.22735518]
[1736506562679,0.00012266,95182.0,95181.0,0.51046348]
[1736506565205,0.00012266,95182.0,95181.0,0.22735518]
[1736506567032,0.00012266,95182.0,95181.0,0.20767963]
[1736506569133,0.00012266,95182.0,95181.0,0.22736678]
[1736506569772,0.00012266,95182.0,95181.0,0.25036678]
[1736506570771,0.00012266,95182.0,95181.0,0.24936678]
[1736506570975,0.00012266,95182.0,95181.0,0.25036678]
[1736506571177,5e-07,95193.0,95181.0,0.44016678]
[1736506571382,8e-08,95216.0,95215.0,0.1]
[1736506571586,0.209926,95272.0,95215.0,0.1]
[1736506571587,0.28351426,95244.0,95229.0,0.1]
[1736506571787,0.28351426,95244.0,95215.0,1.61149976]
[1736506571788,0.25484288,95244.0,95243.0,0.31472842]
[1736506571989,0.25484288,95244.0,95243.0,0.51902818]
[1736506572269,0.25532931,95244.0,95243.0,0.53525652]
[1736506572430,0.25532931,95244.0,95243.0,0.3281281]
[1736506572773,4.3e-07,95244.0,95243.0,0.54560986]
[1736506573376,4.069e-05,95267.0,95262.0,0.64992842]
[1736506573506,0.00321305,95263.0,95262.0,0.10429976]
[1736506573852,0.00321305,95263.0,95262.0,0.12062313]
[1736506574262,0.00321305,95263.0,95262.0,0.11342313]
[1736506574401,0.00321305,95263.0,95262.0,0.00912337]
[1736506574608,0.00321305,95263.0,95262.0,0.01112337]
[1736506574815,0.00321305,95263.0,95262.0,0.01073066]
[1736506576101,0.00321305,95263.0,95262.0,0.00873066]
[1736506576270,0.00321305,95263.0,95245.0,0.00104983]
[1736506576615,0.00321305,95263.0,95244.0,0.0072]
[1736506576616,0.00321305,95263.0,95262.0,0.00873066]
[1736506576819,0.00321305,95263.0,95244.0,0.0072]
[1736506577026,0.209947,95262.0,95246.0,0.00874323]
[1736506577279,0.00321305,95263.0,95233.0,0.0009976]
[1736506577578,0.209979,95248.0,95247.0,0.00839339]
[1736506577779,0.0277581,95262.0,95234.0,0.11149976]
[1736506577983,0.209989,95243.0,95234.0,0.11149976]
[1736506578139,0.209989,95243.0,95235.0,0.00840303]
[1736506578340,0.209989,95243.0,95234.0,0.11149976]
[1736506578547,0.209989,95243.0,95235.0,0.0072]
[1736506578945,0.209989,95243.0,95236.0,0.00840224]
[1736506579148,0.209979,95248.0,95236.0,0.00840224]
[1736506579564,0.209963,95255.0,95235.0,0.0072]
[1736506579565,0.209963,95255.0,95247.0,0.001]
[1736506579768,0.01407593,95254.0,95247.0,0.001]
[1736506579996,0.209978,95248.0,95247.0,0.001]
[1736506580197,0.210017,95231.0,95216.0,0.09478468]
[1736506580400,0.210008,95235.0,95217.0,0.10429976]
[1736506580557,0.210039,95221.0,95217.0,0.00841911]
[1736506581005,0.210039,95221.0,95208.0,0.09380238]
[1736506581206,0.210039,95221.0,95199.0,0.23450596]
[1736506581207,0.210039,95221.0,95209.0,0.11169976]
[1736506581382,0.00014578,95221.0,95209.0,0.12012516]
[1736506581599,0.210039,95220.0,95209.0,0.12012516]
[1736506581801,0.00014578,95221.0,95209.0,0.12012516]
[1736506582001,0.00014578,95221.0,95210.0,0.00105024]
[1736506582179,0.00014578,95221.0,95217.0,0.210046]
[1736506582379,0.00014578,95221.0,95218.0,0.10429976]
[1736506582663,0.00014578,95221.0,95218.0,0.11271952]
[1736506582789,0.00014578,95221.0,95219.0,0.210042]
[1736506582995,0.00014578,95221.0,95220.0,0.10029976]
[1736506583200,0.00014578,95221.0,95220.0,0.10871795]
[1736506583396,0.00014578,95221.0,95220.0,0.11611795]
[1736506584478,0.00014578,95221.0,95220.0,0.14016805]
[1736506585067,0.00014578,95221.0,95220.0,0.13476805]
[1736506585272,0.00014578,95221.0,95220.0,0.14216805]
[1736506585456,0.00014578,95221.0,95220.0,0.14016805]
[1736506585655,0.00014578,95221.0,95220.0,0.14516805]
[1736506585858,0.00014578,95221.0,95220.0,0.14016805]
[1736506586222,0.00014578,95221.0,95220.0,0.13276805]
[1736506586447,0.00014578,95221.0,95220.0,0.14016805]
[1736506586655,0.00014578,95221.0,95220.0,0.14616805]
[1736506586871,0.00014578,95221.0,95220.0,0.62129647]
[1736506587078,0.00014578,95221.0,95220.0,0.62124637]
[1736506587518,0.00014578,95221.0,95220.0,0.62024637]
[1736506587714,0.00014578,95221.0,95220.0,0.61424637]
[1736506588022,0.12220278,95258.0,95221.0,0.273]
[1736506588237,0.00014573,95258.0,95257.0,0.50429976]
[1736506588438,0.00014573,95258.0,95257.0,0.26169976]
[1736506588852,0.00014573,95258.0,95257.0,0.27020665]
[1736506589072,0.00014573,95258.0,95257.0,0.29320665]
[1736506589281,0.00014573,95258.0,95257.0,0.43339128]
[1736506590126,0.00014573,95258.0,95257.0,0.39320665]
[1736506590534,0.00014573,95258.0,95257.0,0.87433507]
[1736506590945,0.00014573,95258.0,95257.0,0.87733507]
[1736506591153,0.00014573,95258.0,95257.0,0.58633507]
[1736506591369,0.00014573,95258.0,95257.0,0.57733507]
[1736506591573,0.00014573,95258.0,95257.0,0.57433507]
[1736506591779,0.00014573,95258.0,95257.0,0.58933507]
[1736506594745,0.00014573,95258.0,95257.0,0.82238511]
[1736506595372,0.00014573,95258.0,95257.0,0.58933507]
[1736506596628,6.9e-07,95267.0,95266.0,0.85986642]
[1736506596951,6.9e-07,95267.0,95266.0,2.49530031]
[1736506597334,4.1e-07,95274.0,95273.0,0.34992842]
[1736506597524,4.1e-07,95274.0,95273.0,0.37722818]
[1736506597783,4.1e-07,95274.0,95273.0,0.38542839]
[1736506597987,4.1e-07,95274.0,95273.0,0.29282839]
[1736506598387,4.1e-07,95274.0,95273.0,0.51811287]
[1736506598529,4.1e-07,95274.0,95273.0,0.52551287]
[1736506599152,4.1e-07,95274.0,95273.0,0.47895826]
[1736506599375,4.1e-07,95274.0,95273.0,0.48795826]
[1736506599782,4.1e-07,95274.0,95273.0,0.30182839]
[1736506600013,4.1e-07,95274.0,95273.0,0.29282839]
[1736506600225,4.1e-07,95274.0,95273.0,0.29582839]
[1736506600631,4.1e-07,95274.0,95273.0,0.29282839]
[1736506601072,4.1e-07,95274.0,95273.0,0.52951287]
[1736506601372,4.1e-07,95274.0,95273.0,0.34911287]
[1736506601582,4.1e-07,95274.0,95273.0,0.12882839]
[1736506601721,4.1e-07,95274.0,95273.0,0.12087787]
[1736506602129,4.1e-07,95274.0,95273.0,0.14547787]
[1736506602427,4.1e-07,95274.0,95273.0,0.15287787]
[1736506602636,4.1e-07,95274.0,95273.0,0.13647787]
[1736506602967,4.1e-07,95274.0,95273.0,0.24690539]
[1736506603075,4.1e-07,95274.0,95273.0,0.23890539]
[1736506603282,4.1e-07,95274.0,95273.0,0.2854439]
[1736506603527,4.1e-07,95274.0,95273.0,0.2824439]
[1736506603731,4.1e-07,95274.0,95273.0,0.2894439]
[1736506603920,4.1e-07,95274.0,95273.0,0.14982839]
[1736506604260,4.1e-07,95274.0,95273.0,0.14782839]
[1736506604593,4.1e-07,95274.0,95273.0,0.14347786]
[1736506604768,0.00495936,95278.0,95274.0,0.023]
[1736506604981,0.00495936,95278.0,95276.0,0.023]
[1736506605281,0.00495936,95278.0,95277.0,0.11169976]
[1736506605587,0.00495936,95278.0,95277.0,0.11982616]
[1736506607148,0.00495936,95278.0,95277.0,0.12782616]
[1736506607331,0.00500792,95278.0,95277.0,0.12782616]
[1736506607885,0.00500792,95278.0,95277.0,0.12042616]
[1736506608075,0.00500792,95278.0,95277.0,0.12782616]
[1736506608297,0.00500792,95278.0,95277.0,0.21396275]
[1736506608496,0.00500792,95278.0,95277.0,0.21796275]
[1736506608980,0.00500792,95278.0,95277.0,0.21396275]
[1736506609169,0.00500792,95278.0,95277.0,0.12482616]
[1736506609553,0.00500792,95278.0,95277.0,0.12082616]
[1736506609767,0.00500792,95278.0,95277.0,0.11742616]
[1736506609980,0.00500792,95278.0,95277.0,0.21300275]
[1736506610179,0.00500792,95278.0,95277.0,0.20656275]
[1736506610408,0.00500792,95278.0,95277.0,0.21400275]
[1736506610913,0.00500792,95278.0,95277.0,0.11986616]
[1736506611211,0.00500792,95278.0,95277.0,0.12086616]
[1736506611769,0.00500792,95278.0,95277.0,0.11986616]
[1736506612138,0.00500792,95278.0,95277.0,0.26448167]
[1736506612344,0.00500792,95278.0,95277.0,0.25948167]
[1736506612779,0.00500792,95278.0,95277.0,0.26448167]
[1736506613075,0.00500792,95278.0,95277.0,0.25704167]
[1736506613314,0.00500792,95278.0,95277.0,0.31102017]
[1736506613915,0.00500792,95278.0,95277.0,0.12486616]
[1736506614125,0.00500792,95278.0,95277.0,0.12586616]
[1736506615397,0.00500792,95278.0,95277.0,0.35855064]
[1736506615601,0.00500792,95278.0,95277.0,0.25425088]
[1736506616017,0.00500792,95278.0,95277.0,0.0215664]
[1736506616394,0.00500792,95278.0,95277.0,0.0155664]
[1736506616777,0.00500792,95278.0,95277.0,0.0101264]
[1736506616977,0.00500792,95278.0,95277.0,0.0175664]
[1736506617204,0.00500792,95278.0,95277.0,0.0155664]
[1736506617622,0.00200792,95278.0,95277.0,0.0155664]
[1736506618254,0.0755,95286.0,95277.0,0.0081264]
[1736506618255,0.07059322,95286.0,95277.0,0.0081264]
[1736506618483,0.07059322,95286.0,95278.0,0.209912]
[1736506618800,0.07059322,95286.0,95284.0,0.18714003]
[1736506618992,0.209891,95288.0,95284.0,0.18714003]
[1736506619113,0.20993955,95288.0,95285.0,0.00812296]
[1736506619323,0.20993955,95288.0,95284.0,0.18714003]
[1736506619527,0.20993955,95288.0,95286.0,0.00812217]
[1736506619732,0.41983055,95288.0,95284.0,0.18714003]
[1736506619940,0.46713055,95288.0,95287.0,0.00812139]
[1736506620201,0.46713055,95288.0,95285.0,0.1403654]
[1736506620420,0.46713055,95288.0,95287.0,0.00812123]
[1736506620563,0.46713055,95288.0,95286.0,0.00812201]
[1736506620774,0.46713055,95288.0,95287.0,0.00812123]
[1736506621203,0.25723955,95288.0,95281.0,0.09359486]
[1736506621403,0.209903,95282.0,95281.0,0.09359486]
[1736506621613,0.209903,95282.0,95277.0,0.09359486]
[1736506622225,0.209903,95282.0,95275.0,0.09359486]
[1736506623290,0.209903,95282.0,95273.0,0.1403654]
[1736506623291,0.209903,95282.0,95273.0,0.09359486]
[1736506624471,0.209903,95282.0,95272.0,0.09359486]
[1736506624912,0.209903,95282.0,95271.0,0.209927]
[1736506624913,0.209903,95282.0,95271.0,0.30352186]
[1736506625348,0.419788,95286.0,95271.0,0.51344886]
[1736506625505,0.209894,95286.0,95271.0,0.30352186]
[1736506625700,0.419793,95285.0,95271.0,0.30352186]
[1736506626093,0.209896,95285.0,95271.0,0.30352186]
[1736506626311,4.855e-05,95288.0,95272.0,0.10429976]
[1736506626542,4.855e-05,95288.0,95286.0,0.209894]
[1736506626747,4.855e-05,95288.0,95286.0,0.31419376]
[1736506626945,4.855e-05,95288.0,95287.0,0.10429976]
[1736506628878,4.855e-05,95288.0,95287.0,0.11229976]
[1736506629092,4.855e-05,95288.0,95287.0,0.12729976]
[1736506629282,4.855e-05,95288.0,95287.0,0.33402471]
[1736506629586,4.855e-05,95288.0,95287.0,0.29943979]
[1736506630223,4.855e-05,95288.0,95287.0,0.11229976]
[1736506630630,4.855e-05,95288.0,95287.0,0.11429976]
[1736506631396,4.855e-05,95288.0,95287.0,0.34883106]
[1736506631818,4.855e-05,95288.0,95287.0,0.36439166]
[1736506632827,4.855e-05,95288.0,95287.0,0.12986036]
[1736506633630,4.855e-05,95288.0,95287.0,0.31777163]
[1736506634409,4.855e-05,95288.0,95287.0,0.12986036]
[1736506634867,4.855e-05,95288.0,95287.0,0.12242036]
[1736506634989,4.855e-05,95288.0,95287.0,0.12986036]
[1736506635192,0.023,95307.0,95295.0,0.209874]
[1736506635454,0.023,95305.0,95295.0,0.209874]
[1736506635606,0.023,95305.0,95296.0,0.00811353]
[1736506635808,0.209854,95304.0,95301.0,0.09402473]
[1736506636016,0.023,95305.0,95301.0,0.09402473]
[1736506636221,0.023,95307.0,95302.0,0.00810882]
[1736506636423,0.209842,95310.0,95302.0,0.00810882]
[1736506636424,0.173,95305.0,95302.0,0.00810882]
[1736506636630,0.023,95303.0,95302.0,0.00810882]
[1736506636847,0.023,95303.0,95296.0,0.09402473]
[1736506637100,0.232856,95303.0,95302.0,0.00810882]
[1736506637301,0.023,95301.0,95296.0,0.09402473]
[1736506637508,0.023,95301.0,95290.0,0.30390973]
[1736506637915,0.209845,95309.0,95294.0,0.209875]
[1736506638158,0.209845,95309.0,95295.0,0.209874]
[1736506638532,0.023,95306.0,95294.0,0.209875]
[1736506639009,0.023,95308.0,95298.0,0.09402473]
[1736506639433,0.023,95306.0,95298.0,0.09402473]
[1736506639632,0.209845,95309.0,95300.0,0.09402473]
[1736506639864,0.15114389,95316.0,95301.0,0.10429976]
[1736506640550,0.209835,95313.0,95301.0,0.31416076]
[1736506641220,0.00114389,95316.0,95301.0,0.10429976]